[Event "*** SCC Grand Prix: Titled Tuesday Blitz"]
[Site "Chess.com"]
[Date "2020.09.29"]
[Round "5"]
[White "Koksik_13"]
[Black "FairChess_on_YouTube"]
[Result "0-1"]
[WhiteElo "2656"]
[BlackElo "2933"]
[TimeControl "180+1"]
[EndTime "10:56:56 PDT"]
[Termination "FairChess_on_YouTube won on time"]

1. d4 {[%clk 0:02:59.8]} 1... d5 {[%clk 0:02:58.3]} 2. Nc3 {[%clk 0:02:59.6]}
2... Bf5 {[%clk 0:02:56.8]} 3. Bf4 {[%clk 0:02:59.4]} 3... e6 {[%clk 0:02:56.2]}
4. e3 {[%clk 0:02:55.9]} 4... Bd6 {[%clk 0:02:54.5]} 5. Bxd6 {[%clk 0:02:55.1]}
5... Qxd6 {[%clk 0:02:54.3]} 6. Nf3 {[%clk 0:02:55.1]} 6... Ne7 {[%clk
0:02:52.7]} 7. Bd3 {[%clk 0:02:55.3]} 7... O-O {[%clk 0:02:49.9]} 8. O-O {[%clk
0:02:53.8]} 8... Nd7 {[%clk 0:02:44.3]} 9. e4 {[%clk 0:02:52.9]} 9... dxe4
{[%clk 0:02:37.7]} 10. Nxe4 {[%clk 0:02:53.8]} 10... Qb6 {[%clk 0:02:32.3]} 11.
Ng3 {[%clk 0:02:43.9]} 11... Bxd3 {[%clk 0:02:27.3]} 12. Qxd3 {[%clk 0:02:44.8]}
12... Rfd8 {[%clk 0:02:17.4]} 13. b3 {[%clk 0:02:35.5]} 13... c5 {[%clk
0:02:16.1]} 14. Ng5 {[%clk 0:02:22.2]} 14... Nf8 {[%clk 0:01:28.1]} 15. Qf3
{[%clk 0:01:54.4]} 15... f6 {[%clk 0:01:27.8]} 16. dxc5 {[%clk 0:01:53.5]} 16...
Qxc5 {[%clk 0:01:28]} 17. N5e4 {[%clk 0:01:53.6]} 17... Qc6 {[%clk 0:01:25.4]}
18. Nh5 {[%clk 0:01:44.3]} 18... Neg6 {[%clk 0:01:10.8]} 19. Rad1 {[%clk
0:01:24.8]} 19... f5 {[%clk 0:01:03.7]} 20. Ng5 {[%clk 0:01:24.7]} 20... Qxf3
{[%clk 0:01:03.4]} 21. Nxf3 {[%clk 0:01:24.2]} 21... e5 {[%clk 0:00:59.1]} 22.
Ng3 {[%clk 0:01:18.9]} 22... f4 {[%clk 0:00:51.8]} 23. Ne4 {[%clk 0:01:17.8]}
23... Ne6 {[%clk 0:00:50]} 24. c3 {[%clk 0:01:10.4]} 24... h6 {[%clk 0:00:48]}
25. h4 {[%clk 0:01:10.3]} 25... h5 {[%clk 0:00:44.2]} 26. Rfe1 {[%clk
0:01:10.3]} 26... a5 {[%clk 0:00:42.9]} 27. a4 {[%clk 0:01:05]} 27... b6 {[%clk
0:00:39.4]} 28. Kf1 {[%clk 0:01:04.6]} 28... Kf8 {[%clk 0:00:34.4]} 29. Ke2
{[%clk 0:00:54.9]} 29... Ke7 {[%clk 0:00:32.5]} 30. g3 {[%clk 0:00:55.2]} 30...
Rac8 {[%clk 0:00:27.2]} 31. Rxd8 {[%clk 0:00:47.4]} 31... Rxd8 {[%clk
0:00:28.1]} 32. Rg1 {[%clk 0:00:47.5]} 32... fxg3 {[%clk 0:00:25.1]} 33. fxg3
{[%clk 0:00:45.2]} 33... Rc8 {[%clk 0:00:24.3]} 34. Rd1 {[%clk 0:00:40.8]} 34...
Nc5 {[%clk 0:00:23.7]} 35. Nxc5 {[%clk 0:00:36.3]} 35... Rxc5 {[%clk 0:00:21.1]}
36. c4 {[%clk 0:00:34.6]} 36... Nf8 {[%clk 0:00:20.3]} 37. Ng5 {[%clk
0:00:33.7]} 37... Nd7 {[%clk 0:00:16.9]} 38. Ne4 {[%clk 0:00:31.6]} 38... Rc6
{[%clk 0:00:17.2]} 39. Rd5 {[%clk 0:00:28.9]} 39... Nc5 {[%clk 0:00:15.3]} 40.
Rxe5+ {[%clk 0:00:27.9]} 40... Re6 {[%clk 0:00:15.3]} 41. Rxe6+ {[%clk
0:00:25.7]} 41... Kxe6 {[%clk 0:00:16.2]} 42. Nd2 {[%clk 0:00:08.1]} 42... Ke5
{[%clk 0:00:15.7]} 43. Ke3 {[%clk 0:00:08.3]} 43... g6 {[%clk 0:00:15.4]} 44.
Nf3+ {[%clk 0:00:08.8]} 44... Kf5 {[%clk 0:00:15.4]} 45. Nd4+ {[%clk 0:00:09.1]}
45... Kg4 {[%clk 0:00:15.6]} 46. Kf2 {[%clk 0:00:03.2]} 46... Ne4+ {[%clk
0:00:15.7]} 47. Kg2 {[%clk 0:00:03.4]} 47... Nxg3 {[%clk 0:00:15.9]} 48. Nc6
{[%clk 0:00:02.8]} 48... Nf5 {[%clk 0:00:14.4]} 49. Ne5+ {[%clk 0:00:03.1]}
49... Kxh4 {[%clk 0:00:13.9]} 50. Nd7 {[%clk 0:00:04]} 50... Nd4 {[%clk
0:00:12.5]} 51. Nxb6 {[%clk 0:00:03.8]} 51... Nxb3 {[%clk 0:00:12.6]} 52. Nd7
{[%clk 0:00:04.7]} 52... Kg5 {[%clk 0:00:11.3]} 53. c5 {[%clk 0:00:05.1]} 53...
Kf5 {[%clk 0:00:11.7]} 54. c6 {[%clk 0:00:05.2]} 54... Ke6 {[%clk 0:00:11.5]}
55. Nb6 {[%clk 0:00:04.8]} 55... Kd6 {[%clk 0:00:11]} 56. Nc4+ {[%clk
0:00:04.9]} 56... Kxc6 {[%clk 0:00:11]} 57. Ne5+ {[%clk 0:00:05.5]} 57... Kc5
{[%clk 0:00:10.1]} 58. Nxg6 {[%clk 0:00:06.4]} 58... Kb4 {[%clk 0:00:10.6]} 59.
Ne5 {[%clk 0:00:05.5]} 59... Kxa4 {[%clk 0:00:05.4]} 60. Nc6 {[%clk 0:00:05.2]}
60... Nc5 {[%clk 0:00:05.4]} 61. Kh3 {[%clk 0:00:04.7]} 61... Ne6 {[%clk
0:00:05.7]} 62. Kh4 {[%clk 0:00:04.8]} 62... Ng7 {[%clk 0:00:06.2]} 63. Kg5
{[%clk 0:00:05.1]} 63... Kb5 {[%clk 0:00:05.7]} 64. Nd4+ {[%clk 0:00:05.3]}
64... Kc4 {[%clk 0:00:05.9]} 65. Nc2 {[%clk 0:00:04.5]} 65... a4 {[%clk
0:00:06.2]} 66. Na3+ {[%clk 0:00:04.8]} 66... Kb3 {[%clk 0:00:06.4]} 67. Nb5
{[%clk 0:00:05.1]} 67... a3 {[%clk 0:00:06.9]} 68. Nd4+ {[%clk 0:00:05.7]} 68...
Kb2 {[%clk 0:00:07.1]} 69. Nf5 {[%clk 0:00:06.1]} 69... Nxf5 {[%clk 0:00:06.1]}
0-1

[Event "*** SCC Grand Prix: Titled Tuesday Blitz"]
[Site "Chess.com"]
[Date "2020.09.29"]
[Round "5"]
[White "PavelShkapenko"]
[Black "KarstenHansch"]
[Result "1-0"]
[WhiteElo "2709"]
[BlackElo "2469"]
[TimeControl "180+1"]
[EndTime "10:57:40 PDT"]
[Termination "PavelShkapenko won by resignation"]

1. e4 {[%clk 0:03:00.9]} 1... c6 {[%clk 0:03:00]} 2. d4 {[%clk 0:03:00.8]} 2...
d5 {[%clk 0:03:00.9]} 3. e5 {[%clk 0:03:01.3]} 3... Bf5 {[%clk 0:03:00.4]} 4. h4
{[%clk 0:03:00.5]} 4... h5 {[%clk 0:03:00]} 5. Bd3 {[%clk 0:02:59.4]} 5... Bxd3
{[%clk 0:03:00.1]} 6. Qxd3 {[%clk 0:03:00]} 6... Qa5+ {[%clk 0:03:00.9]} 7. Nd2
{[%clk 0:02:43.5]} 7... e6 {[%clk 0:02:57.8]} 8. Nf3 {[%clk 0:02:40.6]} 8... Ne7
{[%clk 0:02:46.8]} 9. O-O {[%clk 0:02:39.5]} 9... Nf5 {[%clk 0:02:46.9]} 10. c4
{[%clk 0:02:38.9]} 10... Be7 {[%clk 0:02:42.4]} 11. g3 {[%clk 0:02:31.7]} 11...
Qa6 {[%clk 0:02:35.4]} 12. Qc2 {[%clk 0:02:31.1]} 12... dxc4 {[%clk 0:02:24.9]}
13. Nxc4 {[%clk 0:02:30.3]} 13... O-O {[%clk 0:02:23.8]} 14. Bg5 {[%clk
0:02:23]} 14... Nd7 {[%clk 0:02:03]} 15. Bxe7 {[%clk 0:02:20.6]} 15... Nxe7
{[%clk 0:02:02.7]} 16. Nd6 {[%clk 0:02:20.3]} 16... g6 {[%clk 0:01:43.7]} 17.
Ng5 {[%clk 0:01:58.8]} 17... Nf5 {[%clk 0:01:18.8]} 18. Nxf5 {[%clk 0:01:57.7]}
18... exf5 {[%clk 0:01:19.5]} 19. e6 {[%clk 0:01:48.5]} 19... f6 {[%clk
0:01:06.6]} 20. Nf7 {[%clk 0:01:25.3]} 20... Nb6 {[%clk 0:00:53.6]} 21. Qd2
{[%clk 0:01:04.7]} 21... Rxf7 {[%clk 0:00:35.7]} 22. exf7+ {[%clk 0:01:04]}
22... Kxf7 {[%clk 0:00:36.6]} 23. Qh6 {[%clk 0:01:04]} 23... Rg8 {[%clk
0:00:35.3]} 24. Rfe1 {[%clk 0:00:58.2]} 24... Nd5 {[%clk 0:00:33.7]} 25. Qh7+
{[%clk 0:00:52.3]} 25... Rg7 {[%clk 0:00:32.5]} 26. Qh8 {[%clk 0:00:52.6]} 26...
Rg8 {[%clk 0:00:30.4]} 27. Qh7+ {[%clk 0:00:42.6]} 27... Rg7 {[%clk 0:00:30.4]}
28. Qh6 {[%clk 0:00:43.2]} 28... Rg8 {[%clk 0:00:22.7]} 29. Qd2 {[%clk
0:00:36.4]} 29... Qb6 {[%clk 0:00:20.6]} 30. Re2 {[%clk 0:00:36]} 30... Qb4
{[%clk 0:00:18.3]} 31. Qd3 {[%clk 0:00:21.2]} 31... Qd6 {[%clk 0:00:18.2]} 32.
Rae1 {[%clk 0:00:20.9]} 32... Rd8 {[%clk 0:00:17.9]} 33. Qd2 {[%clk 0:00:20.5]}
33... Kg7 {[%clk 0:00:17.1]} 34. Re6 {[%clk 0:00:19.4]} 34... Qd7 {[%clk
0:00:17]} 35. a3 {[%clk 0:00:19.3]} 35... Qf7 {[%clk 0:00:17]} 36. b4 {[%clk
0:00:18]} 36... a6 {[%clk 0:00:17.1]} 37. Qc2 {[%clk 0:00:17.6]} 37... Rd7
{[%clk 0:00:16.8]} 38. Qc5 {[%clk 0:00:17.6]} 38... f4 {[%clk 0:00:17]} 39. Kg2
{[%clk 0:00:17.2]} 39... fxg3 {[%clk 0:00:16.9]} 40. fxg3 {[%clk 0:00:17.6]}
40... f5 {[%clk 0:00:16]} 41. R1e5 {[%clk 0:00:16.2]} 41... f4 {[%clk
0:00:16.2]} 42. Qc1 {[%clk 0:00:15.6]} 42... fxg3 {[%clk 0:00:15]} 43. Kxg3
{[%clk 0:00:16]} 43... Nf6 {[%clk 0:00:13.1]} 44. Qg5 {[%clk 0:00:12.5]} 44...
Ng4 {[%clk 0:00:12.5]} 45. Re7 {[%clk 0:00:11.7]} 45... Nxe5 {[%clk 0:00:11.1]}
46. Rxf7+ {[%clk 0:00:11.6]} 46... Nxf7 {[%clk 0:00:12]} 47. Qf4 {[%clk
0:00:11.6]} 47... Nd6 {[%clk 0:00:10]} 48. Qe5+ {[%clk 0:00:10.9]} 48... Kf7
{[%clk 0:00:10.1]} 49. Kf4 {[%clk 0:00:09]} 49... Nf5 {[%clk 0:00:10.2]} 50. Kg5
{[%clk 0:00:09]} 50... Rxd4 {[%clk 0:00:09.5]} 51. Qf6+ {[%clk 0:00:09.3]} 51...
Ke8 {[%clk 0:00:08.3]} 52. Qxg6+ {[%clk 0:00:09.7]} 52... Ke7 {[%clk 0:00:08.5]}
53. Kxf5 {[%clk 0:00:09.1]} 53... Rd5+ {[%clk 0:00:08.7]} 54. Ke4 {[%clk
0:00:09.3]} 54... Kd7 {[%clk 0:00:09]} 55. Qg7+ {[%clk 0:00:09.2]} 55... Kc8
{[%clk 0:00:09.1]} 56. Qf8+ {[%clk 0:00:09.2]} 56... Kc7 {[%clk 0:00:09.6]} 57.
a4 {[%clk 0:00:09]} 57... Kb6 {[%clk 0:00:09.6]} 58. Qa8 {[%clk 0:00:07.6]}
58... a5 {[%clk 0:00:07.9]} 59. bxa5+ {[%clk 0:00:07.2]} 59... Rxa5 {[%clk
0:00:07.9]} 60. Qd8+ {[%clk 0:00:07.8]} 60... Ka6 {[%clk 0:00:08.4]} 61. Kd3
{[%clk 0:00:07.9]} 61... Rxa4 {[%clk 0:00:07.7]} 62. Qa8+ {[%clk 0:00:07.8]}
62... Kb5 {[%clk 0:00:08.2]} 63. Qxb7+ {[%clk 0:00:08.3]} 63... Kc5 {[%clk
0:00:08.7]} 64. Qe7+ {[%clk 0:00:08.4]} 64... Kb6 {[%clk 0:00:09.1]} 65. Qd8+
{[%clk 0:00:08.4]} 65... Kb7 {[%clk 0:00:09.2]} 66. Qe7+ {[%clk 0:00:08.4]}
66... Kb6 {[%clk 0:00:09.2]} 67. Qe3+ {[%clk 0:00:08]} 67... Ka6 {[%clk
0:00:08.3]} 68. Qc5 {[%clk 0:00:07.2]} 68... Rxh4 {[%clk 0:00:07.2]} 69. Qxc6+
{[%clk 0:00:07.3]} 69... Ka5 {[%clk 0:00:07.7]} 70. Qc5+ {[%clk 0:00:07.2]}
70... Ka4 {[%clk 0:00:07.8]} 71. Qa7+ {[%clk 0:00:07.2]} 71... Kb5 {[%clk
0:00:07.9]} 72. Qb7+ {[%clk 0:00:07.2]} 72... Ka5 {[%clk 0:00:08.4]} 73. Qa8+
{[%clk 0:00:06.9]} 73... Kb5 {[%clk 0:00:08.6]} 74. Qb8+ {[%clk 0:00:07.1]}
74... Ka4 {[%clk 0:00:08.6]} 75. Qa7+ {[%clk 0:00:06.7]} 75... Kb3 {[%clk
0:00:07.6]} 76. Qf7+ {[%clk 0:00:07.1]} 76... Ka4 {[%clk 0:00:06.5]} 77. Qe8+
{[%clk 0:00:06.9]} 77... Kb3 {[%clk 0:00:06]} 78. Qe6+ {[%clk 0:00:07.2]} 78...
Ka4 {[%clk 0:00:05.7]} 79. Qa2+ {[%clk 0:00:07]} 79... Kb5 {[%clk 0:00:05.5]}
80. Qd5+ {[%clk 0:00:06.8]} 80... Ka4 {[%clk 0:00:05.7]} 81. Qc6+ {[%clk
0:00:06.8]} 81... Kb3 {[%clk 0:00:05.4]} 82. Qc3+ {[%clk 0:00:07.1]} 82... Ka2
{[%clk 0:00:05.2]} 83. Qa5+ {[%clk 0:00:06.8]} 83... Kb3 {[%clk 0:00:05]} 84.
Qb5+ {[%clk 0:00:06.9]} 84... Rb4 {[%clk 0:00:04.7]} 85. Qd5+ {[%clk 0:00:06.6]}
85... Ka4 {[%clk 0:00:04.8]} 86. Qxh5 {[%clk 0:00:06.6]} 86... Rb3+ {[%clk
0:00:04.9]} 87. Kc2 {[%clk 0:00:07]} 87... Rb4 {[%clk 0:00:05.4]} 88. Qe8+
{[%clk 0:00:06.9]} 88... Ka5 {[%clk 0:00:05.2]} 89. Qa8+ {[%clk 0:00:05.9]}
89... Kb5 {[%clk 0:00:05.3]} 90. Qd5+ {[%clk 0:00:06.3]} 90... Ka4 {[%clk
0:00:05.4]} 91. Kc3 {[%clk 0:00:06.7]} 91... Rb1 {[%clk 0:00:04.3]} 92. Qa2+
{[%clk 0:00:06.8]} 92... Kb5 {[%clk 0:00:04.3]} 93. Qxb1+ {[%clk 0:00:07.3]} 1-0

[Event "*** SCC Grand Prix: Titled Tuesday Blitz"]
[Site "Chess.com"]
[Date "2020.09.29"]
[Round "6"]
[White "ApacheSVD"]
[Black "tk22h"]
[Result "1/2-1/2"]
[WhiteElo "2416"]
[BlackElo "2314"]
[TimeControl "180+1"]
[EndTime "10:59:55 PDT"]
[Termination "Game drawn by agreement"]

1. e4 {[%clk 0:03:00.9]} 1... e5 {[%clk 0:02:59.2]} 2. Nf3 {[%clk 0:03:00.7]}
2... Nc6 {[%clk 0:02:59.2]} 3. Bc4 {[%clk 0:03:00.9]} 3... Nf6 {[%clk
0:02:58.3]} 4. d3 {[%clk 0:03:00.4]} 4... Be7 {[%clk 0:02:58.2]} 5. O-O {[%clk
0:03:00.6]} 5... O-O {[%clk 0:02:58.3]} 6. Re1 {[%clk 0:03:00.8]} 6... d6 {[%clk
0:02:58.3]} 7. a4 {[%clk 0:03:01.2]} 7... Na5 {[%clk 0:02:57.6]} 8. Ba2 {[%clk
0:03:01]} 8... c5 {[%clk 0:02:57.2]} 9. c3 {[%clk 0:03:01.7]} 9... Nc6 {[%clk
0:02:57.2]} 10. Nbd2 {[%clk 0:03:00.7]} 10... h6 {[%clk 0:02:57.3]} 11. Nf1
{[%clk 0:02:59.1]} 11... Re8 {[%clk 0:02:57.1]} 12. Ng3 {[%clk 0:02:57]} 12...
Bf8 {[%clk 0:02:57]} 13. Bb1 {[%clk 0:02:51.6]} 13... d5 {[%clk 0:02:55.3]} 14.
Qc2 {[%clk 0:02:12.1]} 1/2-1/2

[Event "*** SCC Grand Prix: Titled Tuesday Blitz"]
[Site "Chess.com"]
[Date "2020.09.29"]
[Round "6"]
[White "aljado"]
[Black "Sergienko_Sergey"]
[Result "0-1"]
[WhiteElo "2069"]
[BlackElo "2366"]
[TimeControl "180+1"]
[EndTime "11:01:08 PDT"]
[Termination "Sergienko_Sergey won by resignation"]

1. e4 {[%clk 0:03:00.9]} 1... c5 {[%clk 0:02:59.3]} 2. Nf3 {[%clk 0:03:00.5]}
2... a6 {[%clk 0:02:57.5]} 3. c3 {[%clk 0:02:59.4]} 3... e6 {[%clk 0:02:56.9]}
4. d4 {[%clk 0:02:59]} 4... d5 {[%clk 0:02:56.7]} 5. e5 {[%clk 0:02:57]} 5...
Bd7 {[%clk 0:02:56.1]} 6. Be3 {[%clk 0:02:53]} 6... cxd4 {[%clk 0:02:51.5]} 7.
cxd4 {[%clk 0:02:50]} 7... Bb5 {[%clk 0:02:48.4]} 8. Bc4 {[%clk 0:02:46.2]} 8...
Bxc4 {[%clk 0:02:46.1]} 9. Nc3 {[%clk 0:02:38.5]} 9... a5 {[%clk 0:02:38.4]} 10.
b3 {[%clk 0:02:37]} 10... Ba6 {[%clk 0:02:37.9]} 11. a4 {[%clk 0:02:37.1]} 11...
Nc6 {[%clk 0:02:36.1]} 12. Ne2 {[%clk 0:02:35.9]} 12... Bb4+ {[%clk 0:02:35.6]}
13. Kf1 {[%clk 0:02:33.1]} 13... Nge7 {[%clk 0:02:34.1]} 14. g3 {[%clk
0:02:32.4]} 14... Nf5 {[%clk 0:02:31.2]} 15. Kg2 {[%clk 0:02:32.4]} 15... Nxe3+
{[%clk 0:02:24.2]} 16. fxe3 {[%clk 0:02:32]} 16... O-O {[%clk 0:02:24.3]} 17.
Nf4 {[%clk 0:02:31.3]} 17... Rc8 {[%clk 0:02:18]} 18. h4 {[%clk 0:02:30.6]}
18... Ne7 {[%clk 0:02:16]} 19. Ng5 {[%clk 0:02:30.2]} 19... h6 {[%clk
0:02:13.5]} 20. Qh5 {[%clk 0:02:27.9]} 20... Nf5 {[%clk 0:02:08.9]} 21. Ngxe6
{[%clk 0:02:12.1]} 21... fxe6 {[%clk 0:02:05.9]} 22. Nxe6 {[%clk 0:02:11.7]}
22... Nxe3+ {[%clk 0:02:04.3]} 23. Kh3 {[%clk 0:02:10.6]} 0-1

[Event "*** SCC Grand Prix: Titled Tuesday Blitz"]
[Site "Chess.com"]
[Date "2020.09.29"]
[Round "6"]
[White "rugbyclub"]
[Black "sergeikim"]
[Result "0-1"]
[WhiteElo "2160"]
[BlackElo "2407"]
[TimeControl "180+1"]
[EndTime "11:01:44 PDT"]
[Termination "sergeikim won by resignation"]

1. e4 {[%clk 0:02:54.4]} 1... e5 {[%clk 0:02:59.9]} 2. Nf3 {[%clk 0:02:53.4]}
2... Nc6 {[%clk 0:02:59.9]} 3. Bb5 {[%clk 0:02:53.8]} 3... a6 {[%clk 0:02:59.8]}
4. Ba4 {[%clk 0:02:52.5]} 4... Nf6 {[%clk 0:02:59.7]} 5. O-O {[%clk 0:02:52.8]}
5... b5 {[%clk 0:02:59.7]} 6. Bb3 {[%clk 0:02:52.2]} 6... Bc5 {[%clk 0:03:00.6]}
7. a4 {[%clk 0:02:45.3]} 7... Bb7 {[%clk 0:02:59.4]} 8. d3 {[%clk 0:02:43.5]}
8... d6 {[%clk 0:02:58.9]} 9. Nc3 {[%clk 0:02:40.9]} 9... b4 {[%clk 0:02:58]}
10. Ne2 {[%clk 0:02:40.6]} 10... h6 {[%clk 0:02:56.1]} 11. Ng3 {[%clk
0:02:39.8]} 11... O-O {[%clk 0:02:55.7]} 12. a5 {[%clk 0:02:33.5]} 12... Bc8
{[%clk 0:02:53.3]} 13. h3 {[%clk 0:02:31.4]} 13... Be6 {[%clk 0:02:48.7]} 14.
Bc4 {[%clk 0:01:55.9]} 14... Ba7 {[%clk 0:02:39.6]} 15. Kh1 {[%clk 0:01:38.1]}
15... Ne7 {[%clk 0:02:38.6]} 16. Bxa6 {[%clk 0:01:31.6]} 16... Ng6 {[%clk
0:02:35.1]} 17. Bc4 {[%clk 0:01:29]} 17... c6 {[%clk 0:02:33.1]} 18. Nf5 {[%clk
0:01:23.6]} 18... d5 {[%clk 0:02:30.8]} 19. Bb3 {[%clk 0:01:23]} 19... dxe4
{[%clk 0:02:22.8]} 20. dxe4 {[%clk 0:01:22]} 20... Qxd1 {[%clk 0:02:20.9]} 21.
Rxd1 {[%clk 0:01:21.5]} 21... Nxe4 {[%clk 0:02:21.7]} 22. Be3 {[%clk 0:01:15.8]}
22... Bxf5 {[%clk 0:02:20.7]} 0-1

[Event "*** SCC Grand Prix: Titled Tuesday Blitz"]
[Site "Chess.com"]
[Date "2020.09.29"]
[Round "6"]
[White "teacher4chess"]
[Black "nitpicker"]
[Result "0-1"]
[WhiteElo "2001"]
[BlackElo "2238"]
[TimeControl "180+1"]
[EndTime "11:02:18 PDT"]
[Termination "nitpicker won by resignation"]

1. d4 {[%clk 0:02:59.9]} 1... Nf6 {[%clk 0:02:59.1]} 2. Nf3 {[%clk 0:02:59.6]}
2... b6 {[%clk 0:02:57.6]} 3. c4 {[%clk 0:02:55.7]} 3... e6 {[%clk 0:02:56]} 4.
a3 {[%clk 0:02:55.7]} 4... Ba6 {[%clk 0:02:50.7]} 5. Qc2 {[%clk 0:02:50.1]} 5...
Bb7 {[%clk 0:02:49.9]} 6. Nc3 {[%clk 0:02:49.3]} 6... c5 {[%clk 0:02:49.9]} 7.
Bg5 {[%clk 0:02:37.3]} 7... cxd4 {[%clk 0:02:45.2]} 8. Nxd4 {[%clk 0:02:37]}
8... Be7 {[%clk 0:02:44.9]} 9. e4 {[%clk 0:02:26.6]} 9... d6 {[%clk 0:02:36.2]}
10. Nc6 {[%clk 0:02:02.5]} 10... Nxc6 {[%clk 0:02:31.3]} 11. Rd1 {[%clk
0:01:48.9]} 11... a6 {[%clk 0:02:24.7]} 12. Be2 {[%clk 0:01:36.9]} 12... Rc8
{[%clk 0:02:23.6]} 13. O-O {[%clk 0:01:35.1]} 13... Qc7 {[%clk 0:02:23.7]} 14.
Bf4 {[%clk 0:01:22.2]} 14... Ne5 {[%clk 0:02:21.9]} 15. b3 {[%clk 0:00:59.9]}
15... b5 {[%clk 0:02:21.3]} 16. Bxe5 {[%clk 0:00:48.1]} 16... dxe5 {[%clk
0:02:20]} 17. Qb2 {[%clk 0:00:43]} 17... O-O {[%clk 0:02:16.9]} 18. cxb5 {[%clk
0:00:41]} 18... Qxc3 {[%clk 0:02:14.9]} 0-1

[Event "*** SCC Grand Prix: Titled Tuesday Blitz"]
[Site "Chess.com"]
[Date "2020.09.29"]
[Round "6"]
[White "Rubinstein_Akiba"]
[Black "DrMamaliga"]
[Result "0-1"]
[WhiteElo "2379"]
[BlackElo "2303"]
[TimeControl "180+1"]
[EndTime "11:02:29 PDT"]
[Termination "DrMamaliga won by resignation"]

1. e4 {[%clk 0:03:00.9]} 1... d6 {[%clk 0:02:59.1]} 2. d4 {[%clk 0:02:59.8]}
2... Nf6 {[%clk 0:02:58.1]} 3. Nc3 {[%clk 0:02:59.1]} 3... g6 {[%clk 0:02:57.5]}
4. Nf3 {[%clk 0:02:56]} 4... Bg7 {[%clk 0:02:56.6]} 5. Be2 {[%clk 0:02:49.9]}
5... O-O {[%clk 0:02:56.9]} 6. O-O {[%clk 0:02:46.9]} 6... a6 {[%clk 0:02:57.5]}
7. a4 {[%clk 0:02:43.4]} 7... Nc6 {[%clk 0:02:56]} 8. h3 {[%clk 0:02:41]} 8...
e5 {[%clk 0:02:47.7]} 9. Be3 {[%clk 0:02:33.1]} 9... exd4 {[%clk 0:02:46.2]} 10.
Nxd4 {[%clk 0:02:34]} 10... Re8 {[%clk 0:02:45.3]} 11. f3 {[%clk 0:02:32]} 11...
d5 {[%clk 0:02:41.5]} 12. Nxc6 {[%clk 0:02:23.7]} 12... bxc6 {[%clk 0:02:41]}
13. Bg5 {[%clk 0:02:17.9]} 13... Qd6 {[%clk 0:02:31.4]} 14. exd5 {[%clk
0:01:37.6]} 14... cxd5 {[%clk 0:02:13.6]} 15. Kh1 {[%clk 0:01:33.1]} 15... Bb7
{[%clk 0:02:03.4]} 16. Bd3 {[%clk 0:01:21.1]} 16... Nh5 {[%clk 0:02:00.7]} 17.
Bh4 {[%clk 0:01:19.7]} 17... Qf4 {[%clk 0:01:56.1]} 18. Bf2 {[%clk 0:01:15.3]}
18... Be5 {[%clk 0:01:55.4]} 19. g3 {[%clk 0:01:08.5]} 19... Nxg3+ {[%clk
0:01:53.6]} 20. Bxg3 {[%clk 0:01:09.4]} 20... Qxg3 {[%clk 0:01:54.5]} 21. Qd2
{[%clk 0:01:09.8]} 21... Qxh3+ {[%clk 0:01:50.7]} 22. Kg1 {[%clk 0:01:08]} 22...
Bd4+ {[%clk 0:01:50.2]} 23. Rf2 {[%clk 0:01:08.6]} 23... Qg3+ {[%clk 0:01:48]}
0-1

[Event "*** SCC Grand Prix: Titled Tuesday Blitz"]
[Site "Chess.com"]
[Date "2020.09.29"]
[Round "6"]
[White "Srisshhhtea"]
[Black "BanjoKazooieN64"]
[Result "1-0"]
[WhiteElo "2306"]
[BlackElo "2478"]
[TimeControl "180+1"]
[EndTime "11:02:35 PDT"]
[Termination "Srisshhhtea won by checkmate"]

1. d4 {[%clk 0:03:00.9]} 1... Nf6 {[%clk 0:02:59.6]} 2. c4 {[%clk 0:03:00.7]}
2... c5 {[%clk 0:02:59.6]} 3. d5 {[%clk 0:02:58.4]} 3... e6 {[%clk 0:03:00.1]}
4. Nc3 {[%clk 0:02:57.9]} 4... exd5 {[%clk 0:03:00.3]} 5. cxd5 {[%clk
0:02:58.8]} 5... d6 {[%clk 0:03:00.9]} 6. e4 {[%clk 0:02:59.1]} 6... g6 {[%clk
0:03:01.3]} 7. f4 {[%clk 0:02:59.5]} 7... Bg7 {[%clk 0:03:00.9]} 8. Bb5+ {[%clk
0:02:59.9]} 8... Nfd7 {[%clk 0:03:00.7]} 9. a4 {[%clk 0:02:58.3]} 9... O-O
{[%clk 0:03:00.6]} 10. Nf3 {[%clk 0:02:58.5]} 10... Na6 {[%clk 0:02:59.6]} 11.
O-O {[%clk 0:02:58.3]} 11... Nb4 {[%clk 0:02:59.7]} 12. f5 {[%clk 0:02:49.3]}
12... a6 {[%clk 0:02:51]} 13. Bc4 {[%clk 0:02:48.7]} 13... Nf6 {[%clk
0:02:50.8]} 14. Bg5 {[%clk 0:02:43.7]} 14... gxf5 {[%clk 0:02:49.4]} 15. Nh4
{[%clk 0:02:40.8]} 15... fxe4 {[%clk 0:02:42.9]} 16. Nxe4 {[%clk 0:02:38.5]}
16... Nxe4 {[%clk 0:02:39]} 17. Bxd8 {[%clk 0:02:37.9]} 17... Bd4+ {[%clk
0:02:38.6]} 18. Kh1 {[%clk 0:02:35.7]} 18... Rxd8 {[%clk 0:02:36.3]} 19. Qf3
{[%clk 0:02:30.4]} 19... Nd2 {[%clk 0:02:29.5]} 20. Qxf7+ {[%clk 0:02:29.7]}
20... Kh8 {[%clk 0:02:29.3]} 21. Rf6 {[%clk 0:02:20.9]} 21... Ne4 {[%clk
0:01:42.7]} 22. Raf1 {[%clk 0:01:45.2]} 22... Nxf6 {[%clk 0:01:25.3]} 23. Rxf6
{[%clk 0:01:46.1]} 23... Bh3 {[%clk 0:01:09.4]} 24. Rh6 {[%clk 0:01:42.6]} 24...
Bg7 {[%clk 0:01:06.3]} 25. Ng6# {[%clk 0:01:42]} 1-0

[Event "*** SCC Grand Prix: Titled Tuesday Blitz"]
[Site "Chess.com"]
[Date "2020.09.29"]
[Round "6"]
[White "manuellarrea"]
[Black "Mbneu"]
[Result "0-1"]
[WhiteElo "2105"]
[BlackElo "2296"]
[TimeControl "180+1"]
[EndTime "11:02:42 PDT"]
[Termination "Mbneu won by resignation"]

1. d4 {[%clk 0:02:34.5]} 1... Nf6 {[%clk 0:02:54.8]} 2. c4 {[%clk 0:02:33.7]}
2... c5 {[%clk 0:02:55.3]} 3. d5 {[%clk 0:02:31]} 3... e6 {[%clk 0:02:55.8]} 4.
Nc3 {[%clk 0:02:28.9]} 4... exd5 {[%clk 0:02:56]} 5. cxd5 {[%clk 0:02:28.2]}
5... d6 {[%clk 0:02:56.6]} 6. e4 {[%clk 0:02:27.3]} 6... g6 {[%clk 0:02:56.9]}
7. Nf3 {[%clk 0:02:25.8]} 7... Bg7 {[%clk 0:02:57.1]} 8. Be2 {[%clk 0:02:19.7]}
8... O-O {[%clk 0:02:55.1]} 9. O-O {[%clk 0:02:18.7]} 9... a6 {[%clk 0:02:54.1]}
10. a4 {[%clk 0:02:17.3]} 10... Bg4 {[%clk 0:02:54.5]} 11. Nd2 {[%clk 0:02:09]}
11... Bxe2 {[%clk 0:02:45.6]} 12. Qxe2 {[%clk 0:02:08.4]} 12... Nbd7 {[%clk
0:02:46.1]} 13. f4 {[%clk 0:02:06.9]} 13... Re8 {[%clk 0:02:44.9]} 14. Qd3
{[%clk 0:02:06]} 14... Qc7 {[%clk 0:02:40.8]} 15. a5 {[%clk 0:01:57.7]} 15...
Ng4 {[%clk 0:02:38.2]} 16. Nc4 {[%clk 0:01:49.1]} 16... Bd4+ {[%clk 0:02:30.6]}
17. Kh1 {[%clk 0:01:48.3]} 17... Nf2+ {[%clk 0:02:23.9]} 18. Rxf2 {[%clk
0:01:47.7]} 18... Bxf2 {[%clk 0:02:24.4]} 19. Bd2 {[%clk 0:01:46.8]} 19... Bd4
{[%clk 0:02:19]} 20. Rf1 {[%clk 0:01:45]} 20... b5 {[%clk 0:02:01.9]} 21. axb6
{[%clk 0:01:43.1]} 21... Nxb6 {[%clk 0:02:01.4]} 22. Nxb6 {[%clk 0:01:36.1]}
22... Qxb6 {[%clk 0:02:01.3]} 23. Bc1 {[%clk 0:01:34]} 23... Rac8 {[%clk
0:01:53.7]} 24. g4 {[%clk 0:01:28.3]} 24... c4 {[%clk 0:01:52.8]} 25. Qf3 {[%clk
0:01:25.9]} 25... Qb3 {[%clk 0:01:37.3]} 26. g5 {[%clk 0:01:22.6]} 26... Qc2
{[%clk 0:01:36.3]} 27. h4 {[%clk 0:01:20.4]} 27... Bxc3 {[%clk 0:01:35.8]} 28.
bxc3 {[%clk 0:01:18.3]} 28... Qxe4 {[%clk 0:01:35.7]} 0-1